[Event "Live Chess"]
[Site "Chess.com"]
[Date "2024.06.02"]
[Round "-"]
[White "Duke_of_Bebington"]
[Black "imchessive"]
[Result "0-1"]
[WhiteElo "1666"]
[BlackElo "1594"]
[TimeControl "300"]
[EndTime "1:25:00 PDT"]
[Termination "imchessive won by checkmate"]

1. e4 {[%clk 0:04:57.8]} 1... c5 {[%clk 0:04:59.1]} 2. c3 {[%clk 0:04:55]} 2...
e6 {[%clk 0:04:58.1]} 3. d4 {[%clk 0:04:54.2]} 3... d5 {[%clk 0:04:57.6]} 4.
exd5 {[%clk 0:04:47.9]} 4... exd5 {[%clk 0:04:57.5]} 5. Nf3 {[%clk 0:04:41.2]}
5... Nf6 {[%clk 0:04:55.8]} 6. Bg5 {[%clk 0:04:39]} 6... Be7 {[%clk 0:04:54.2]}
7. Bd3 {[%clk 0:04:31.7]} 7... O-O {[%clk 0:04:49.6]} 8. O-O {[%clk 0:04:30.4]}
8... Nc6 {[%clk 0:04:44.7]} 9. Ne5 {[%clk 0:04:20.4]} 9... cxd4 {[%clk
0:04:27.8]} 10. Nxc6 {[%clk 0:04:18.7]} 10... bxc6 {[%clk 0:04:27.7]} 11. cxd4
{[%clk 0:04:17.9]} 11... Rb8 {[%clk 0:04:19.4]} 12. Qe2 {[%clk 0:04:09.1]} 12...
h6 {[%clk 0:04:16.9]} 13. Bh4 {[%clk 0:04:07.5]} 13... Re8 {[%clk 0:04:05.7]}
14. Nc3 {[%clk 0:04:03.3]} 14... Ba3 {[%clk 0:03:58.4]} 15. Bxf6 {[%clk
0:03:49.5]} 15... Qxf6 {[%clk 0:03:49.4]} 16. Qd2 {[%clk 0:03:47.2]} 16... Rxb2
{[%clk 0:03:34.8]} 17. Qd1 {[%clk 0:03:26.1]} 17... Bf5 {[%clk 0:02:58.2]} 18.
Bxf5 {[%clk 0:03:17.2]} 18... Qxf5 {[%clk 0:02:58.1]} 19. Qa4 {[%clk 0:03:05.4]}
19... Bd6 {[%clk 0:02:48.6]} 20. Rab1 {[%clk 0:02:45.3]} 20... Rxb1 {[%clk
0:02:36.9]} 21. Rxb1 {[%clk 0:02:43.3]} 21... Qd3 {[%clk 0:02:17.9]} 22. Qxc6
{[%clk 0:02:26.4]} 22... Re6 {[%clk 0:01:52]} 23. Qc8+ {[%clk 0:02:07.9]} 23...
Kh7 {[%clk 0:01:50.6]} 24. Rf1 {[%clk 0:02:06.3]} 24... Bxh2+ {[%clk 0:01:45.4]}
25. Kxh2 {[%clk 0:02:03.5]} 25... Qxf1 {[%clk 0:01:44.5]} 26. Nxd5 {[%clk
0:02:02.1]} 26... Qxf2 {[%clk 0:01:32.7]} 27. Qb7 {[%clk 0:01:47.5]} 27... Qh4+
{[%clk 0:01:30.1]} 28. Kg1 {[%clk 0:01:44.9]} 28... Re1# {[%clk 0:01:29.2]} 0-1

[Event "Live Chess"]
[Site "Chess.com"]
[Date "2024.06.02"]
[Round "-"]
[White "booktrunk"]
[Black "ZatixMajor"]
[Result "0-1"]
[WhiteElo "1508"]
[BlackElo "2014"]
[TimeControl "300"]
[EndTime "1:25:00 PDT"]
[Termination "ZatixMajor won by resignation"]

1. d4 {[%clk 0:04:41.7]} 1... Nf6 {[%clk 0:04:58.7]} 2. Nc3 {[%clk 0:04:39]}
2... g6 {[%clk 0:04:58.2]} 3. Bf4 {[%clk 0:04:37.2]} 3... Bg7 {[%clk 0:04:57.2]}
4. Nb5 {[%clk 0:04:30]} 4... d6 {[%clk 0:04:54.8]} 5. e3 {[%clk 0:04:27.3]} 5...
a6 {[%clk 0:04:53.8]} 6. Nc3 {[%clk 0:04:25.2]} 6... O-O {[%clk 0:04:53.4]} 7.
Nf3 {[%clk 0:04:23.8]} 7... Nh5 {[%clk 0:04:47.5]} 8. Bd3 {[%clk 0:04:18.4]}
8... Nxf4 {[%clk 0:04:46.2]} 9. exf4 {[%clk 0:04:15.5]} 9... Bg4 {[%clk
0:04:41.7]} 10. h3 {[%clk 0:04:13.4]} 10... Bxf3 {[%clk 0:04:39.3]} 11. Qxf3
{[%clk 0:04:11.4]} 11... Nc6 {[%clk 0:04:34.5]} 12. O-O-O {[%clk 0:04:07.9]}
12... Bxd4 {[%clk 0:04:27.5]} 13. Ne2 {[%clk 0:04:01.1]} 13... Bg7 {[%clk
0:04:23.5]} 14. Rhe1 {[%clk 0:03:59.9]} 14... Nb4 {[%clk 0:04:17.7]} 15. a3
{[%clk 0:03:55.6]} 15... Nxd3+ {[%clk 0:04:15.1]} 16. Rxd3 {[%clk 0:03:54.4]}
16... c5 {[%clk 0:04:14.5]} 17. Nc3 {[%clk 0:03:52.8]} 17... b5 {[%clk
0:04:13.1]} 18. Nd5 {[%clk 0:03:49.3]} 18... e6 {[%clk 0:04:07]} 19. Ne3 {[%clk
0:03:47]} 19... b4 {[%clk 0:04:03.7]} 20. axb4 {[%clk 0:03:44.1]} 20... cxb4
{[%clk 0:04:02.6]} 21. Red1 {[%clk 0:03:43.2]} 21... Qa5 {[%clk 0:03:59.4]} 22.
Rxd6 {[%clk 0:03:37.2]} 22... Qa1+ {[%clk 0:03:52.9]} 23. Kd2 {[%clk 0:03:35.7]}
23... Qxb2 {[%clk 0:03:52.4]} 24. Nc4 {[%clk 0:03:29.1]} 24... Qa2 {[%clk
0:03:38.2]} 25. Ke1 {[%clk 0:03:18.6]} 25... Qxc4 {[%clk 0:03:35.9]} 26. g4
{[%clk 0:03:06.5]} 26... Bc3+ {[%clk 0:03:34.4]} 27. R1d2 {[%clk 0:03:03]} 27...
Rad8 {[%clk 0:03:32.9]} 28. Rxd8 {[%clk 0:02:50]} 28... Rxd8 {[%clk 0:03:32.8]}
29. Qd1 {[%clk 0:02:48.1]} 0-1

[Event "Live Chess"]
[Site "Chess.com"]
[Date "2024.06.02"]
[Round "-"]
[White "jimwad"]
[Black "KyryloPoluliakh"]
[Result "1/2-1/2"]
[WhiteElo "1319"]
[BlackElo "1538"]
[TimeControl "300"]
[EndTime "1:25:11 PDT"]
[Termination "Game drawn by agreement"]

1. d4 {[%clk 0:04:58.6]} 1... Nf6 {[%clk 0:04:56.9]} 2. c4 {[%clk 0:04:57.2]}
2... g6 {[%clk 0:04:55.8]} 3. Nc3 {[%clk 0:04:56.3]} 3... Bg7 {[%clk 0:04:54]}
4. Nf3 {[%clk 0:04:55.4]} 4... O-O {[%clk 0:04:50.1]} 5. Bf4 {[%clk 0:04:53.9]}
5... d6 {[%clk 0:04:49.6]} 6. e3 {[%clk 0:04:52.7]} 6... Nc6 {[%clk 0:04:48.7]}
7. Bd3 {[%clk 0:04:50.5]} 7... Re8 {[%clk 0:04:44.8]} 8. O-O {[%clk 0:04:48.9]}
8... e5 {[%clk 0:04:41.8]} 9. dxe5 {[%clk 0:04:45.8]} 9... dxe5 {[%clk
0:04:41.1]} 10. Bg5 {[%clk 0:04:41.6]} 10... h6 {[%clk 0:04:33.6]} 11. Bxf6
{[%clk 0:04:40.2]} 11... Bxf6 {[%clk 0:04:28.6]} 12. Be4 {[%clk 0:04:28.5]}
12... Nb4 {[%clk 0:04:19.3]} 13. Qxd8 {[%clk 0:04:25]} 13... Rxd8 {[%clk
0:04:16.5]} 14. a3 {[%clk 0:04:20.4]} 14... Na6 {[%clk 0:04:12.8]} 15. b4 {[%clk
0:04:18]} 15... Bg7 {[%clk 0:04:02.3]} 16. Nd5 {[%clk 0:04:10.3]} 16... f5
{[%clk 0:03:55.5]} 17. Bc2 {[%clk 0:04:04.5]} 17... e4 {[%clk 0:03:52.9]} 18.
Nd4 {[%clk 0:03:59.9]} 18... c6 {[%clk 0:03:43.2]} 19. Ne7+ {[%clk 0:03:56.7]}
19... Kf7 {[%clk 0:03:40.2]} 20. Nxc8 {[%clk 0:03:51.2]} 20... Raxc8 {[%clk
0:03:36.6]} 21. Rfd1 {[%clk 0:03:41.9]} 21... c5 {[%clk 0:03:29.5]} 22. bxc5
{[%clk 0:03:35.3]} 22... Nxc5 {[%clk 0:03:27.8]} 23. Rab1 {[%clk 0:03:28.5]}
23... b6 {[%clk 0:03:21.3]} 24. Nb3 {[%clk 0:03:25.7]} 24... Nxb3 {[%clk
0:03:14.8]} 25. Bxb3 {[%clk 0:03:23.7]} 25... Rxd1+ {[%clk 0:03:11.2]} 26. Rxd1
{[%clk 0:03:22]} 26... Ke7 {[%clk 0:03:09.8]} 27. f3 {[%clk 0:03:02.7]} 27...
exf3 {[%clk 0:03:05.2]} 28. gxf3 {[%clk 0:03:01.6]} 28... a5 {[%clk 0:03:01]}
29. a4 {[%clk 0:02:57.7]} 29... Rd8 {[%clk 0:02:51.6]} 30. Rxd8 {[%clk
0:02:47.2]} 30... Kxd8 {[%clk 0:02:50.8]} 31. Kf2 {[%clk 0:02:44.2]} 31... Kc7
{[%clk 0:02:49.6]} 32. h3 {[%clk 0:02:43.1]} 32... Kc6 {[%clk 0:02:49]} 33. e4
{[%clk 0:02:36.9]} 33... fxe4 {[%clk 0:02:47.3]} 34. fxe4 {[%clk 0:02:35]} 34...
Kc5 {[%clk 0:02:46.2]} 35. Ke3 {[%clk 0:02:33.8]} 35... Kb4 {[%clk 0:02:45.5]}
36. Bc2 {[%clk 0:02:30.3]} 36... Kxc4 {[%clk 0:02:43.9]} 37. e5 {[%clk
0:02:29.5]} 37... Bxe5 {[%clk 0:02:41.5]} 38. Bxg6 {[%clk 0:02:28.3]} 38... Kb4
{[%clk 0:02:34.9]} 39. Be8 {[%clk 0:02:27.1]} 39... Bf6 {[%clk 0:02:32.7]} 40.
Ke4 {[%clk 0:02:21.5]} 40... Bg5 {[%clk 0:02:30.6]} 41. Kf5 {[%clk 0:02:20.3]}
41... Kc5 {[%clk 0:02:29.3]} 42. Kg4 {[%clk 0:02:18.6]} 42... Bd2 {[%clk
0:02:27.7]} 43. Bb5 {[%clk 0:02:14.1]} 43... Bc1 {[%clk 0:02:23.2]} 44. h4
{[%clk 0:02:11.8]} 44... Bd2 {[%clk 0:02:21.3]} 45. h5 {[%clk 0:02:11]} 45...
Bg5 {[%clk 0:02:18]} 46. Kf5 {[%clk 0:02:05.7]} 46... Kd5 {[%clk 0:02:15.5]} 47.
Kg4 {[%clk 0:01:59.6]} 47... Kd4 {[%clk 0:02:13.6]} 48. Kf5 {[%clk 0:01:57.1]}
48... Ke3 {[%clk 0:02:13.2]} 49. Kg4 {[%clk 0:01:55.9]} 49... Kf2 {[%clk
0:02:12.6]} 50. Bc6 {[%clk 0:01:52.7]} 50... Bd2 {[%clk 0:02:08.6]} 51. Bb5
{[%clk 0:01:50.7]} 51... Kg2 {[%clk 0:02:06.4]} 52. Bc6+ {[%clk 0:01:49.7]}
52... Kh2 {[%clk 0:02:05.4]} 53. Bd7 {[%clk 0:01:47.1]} 53... Kg2 {[%clk
0:02:04.3]} 54. Bc6+ {[%clk 0:01:45.9]} 54... Kf2 {[%clk 0:02:01.9]} 55. Bb5
{[%clk 0:01:44.8]} 55... Bg5 {[%clk 0:01:56.1]} 56. Bc6 {[%clk 0:01:43.2]} 56...
Ke3 {[%clk 0:01:55.5]} 57. Bb5 {[%clk 0:01:42.4]} 57... Kd4 {[%clk 0:01:55.1]}
58. Be8 {[%clk 0:01:39.5]} 58... Kc5 {[%clk 0:01:53.3]} 59. Bb5 {[%clk
0:01:38.7]} 59... Kb4 {[%clk 0:01:51.5]} 60. Kf5 {[%clk 0:01:36.8]} 60... Kc5
{[%clk 0:01:49.5]} 61. Kg4 {[%clk 0:01:35.8]} 61... Kd6 {[%clk 0:01:48.1]} 62.
Kf5 {[%clk 0:01:35]} 62... Kd5 {[%clk 0:01:46.7]} 63. Kg4 {[%clk 0:01:33.7]}
63... Ke4 {[%clk 0:01:45.2]} 64. Bc6+ {[%clk 0:01:32.7]} 64... Ke5 {[%clk
0:01:44.1]} 65. Bb5 {[%clk 0:01:31.7]} 1/2-1/2

[Event "Live Chess"]
[Site "Chess.com"]
[Date "2024.06.02"]
[Round "-"]
[White "GoldsmanB"]
[Black "Dhaydon19"]
[Result "0-1"]
[WhiteElo "1102"]
[BlackElo "2633"]
[TimeControl "300"]
[EndTime "1:25:16 PDT"]
[Termination "Dhaydon19 won by checkmate"]

1. d4 {[%clk 0:04:57.7]} 1... c6 {[%clk 0:04:59.4]} 2. e4 {[%clk 0:04:53.5]}
2... d5 {[%clk 0:04:59.3]} 3. e5 {[%clk 0:04:52.1]} 3... c5 {[%clk 0:04:58.4]}
4. Nf3 {[%clk 0:04:49.7]} 4... cxd4 {[%clk 0:04:56.6]} 5. Nxd4 {[%clk
0:04:45.9]} 5... Nc6 {[%clk 0:04:55.8]} 6. Nxc6 {[%clk 0:04:44.1]} 6... bxc6
{[%clk 0:04:55.7]} 7. c4 {[%clk 0:04:39.7]} 7... e6 {[%clk 0:04:54.1]} 8. Nc3
{[%clk 0:04:35.4]} 8... Ne7 {[%clk 0:04:52.6]} 9. Bg5 {[%clk 0:04:32.3]} 9...
Qc7 {[%clk 0:04:48.9]} 10. Be2 {[%clk 0:04:25.5]} 10... Qxe5 {[%clk 0:04:47.5]}
11. Bxe7 {[%clk 0:04:20.3]} 11... Bxe7 {[%clk 0:04:46.1]} 12. O-O {[%clk
0:04:19.3]} 12... O-O {[%clk 0:04:43.8]} 13. Qd3 {[%clk 0:04:18.3]} 13... Ba6
{[%clk 0:04:41.2]} 14. b3 {[%clk 0:04:12.9]} 14... Rad8 {[%clk 0:04:38.4]} 15.
Qc2 {[%clk 0:04:08.5]} 15... d4 {[%clk 0:04:34.8]} 16. Na4 {[%clk 0:03:58.8]}
16... c5 {[%clk 0:04:30]} 17. Rfd1 {[%clk 0:03:55]} 17... Bb7 {[%clk 0:04:27.6]}
18. g3 {[%clk 0:03:47.5]} 18... Qe4 {[%clk 0:04:16.2]} 19. Bd3 {[%clk
0:03:37.5]} 19... Qg2# {[%clk 0:04:14.5]} 0-1

[Event "Live Chess"]
[Site "Chess.com"]
[Date "2024.06.02"]
[Round "-"]
[White "KeithArkell"]
[Black "silunn"]
[Result "0-1"]
[WhiteElo "2392"]
[BlackElo "2180"]
[TimeControl "300"]
[EndTime "1:25:40 PDT"]
[Termination "silunn won by resignation"]

1. d4 {[%clk 0:04:57.5]} 1... e6 {[%clk 0:04:59.9]} 2. Nf3 {[%clk 0:04:56.4]}
2... d5 {[%clk 0:04:59.1]} 3. Bg5 {[%clk 0:04:54.9]} 3... Nf6 {[%clk 0:04:58.1]}
4. Nbd2 {[%clk 0:04:53.5]} 4... Be7 {[%clk 0:04:57]} 5. Bxf6 {[%clk 0:04:52.4]}
5... Bxf6 {[%clk 0:04:55.9]} 6. e4 {[%clk 0:04:51.8]} 6... dxe4 {[%clk
0:04:53.4]} 7. Nxe4 {[%clk 0:04:51.1]} 7... Nd7 {[%clk 0:04:51.9]} 8. Bd3 {[%clk
0:04:48.6]} 8... O-O {[%clk 0:04:42.5]} 9. Qe2 {[%clk 0:04:47.6]} 9... e5 {[%clk
0:04:34.9]} 10. Nxf6+ {[%clk 0:04:45.7]} 10... Qxf6 {[%clk 0:04:31]} 11. dxe5
{[%clk 0:04:44.5]} 11... Qb6 {[%clk 0:04:23.8]} 12. c3 {[%clk 0:04:41]} 12...
Re8 {[%clk 0:04:13.6]} 13. O-O {[%clk 0:04:39.8]} 13... f6 {[%clk 0:03:53.1]}
14. Ng5 {[%clk 0:04:30.6]} 14... fxg5 {[%clk 0:03:39.9]} 15. Qh5 {[%clk
0:04:25.7]} 15... g6 {[%clk 0:03:35.1]} 16. Qxg5 {[%clk 0:04:03]} 16... Nc5
{[%clk 0:03:01.5]} 17. Bc4+ {[%clk 0:03:50]} 17... Be6 {[%clk 0:02:57.4]} 18.
Bxe6+ {[%clk 0:03:48.7]} 18... Rxe6 {[%clk 0:02:50.1]} 19. b4 {[%clk 0:03:41.2]}
19... Nd3 {[%clk 0:02:27.8]} 20. Rad1 {[%clk 0:03:39.3]} 20... Nxe5 {[%clk
0:02:24.2]} 21. Rfe1 {[%clk 0:03:35.8]} 21... Rae8 {[%clk 0:02:22.5]} 22. Kh1
{[%clk 0:03:33.2]} 22... Ng4 {[%clk 0:02:12.4]} 23. Rxe6 {[%clk 0:03:30.3]}
23... Nxf2+ {[%clk 0:02:10.8]} 24. Kg1 {[%clk 0:03:29.6]} 24... Nh3+ {[%clk
0:02:09.7]} 0-1

[Event "Live Chess"]
[Site "Chess.com"]
[Date "2024.06.02"]
[Round "-"]
[White "MaksymYurii"]
[Black "NottheBishopSacrifice"]
[Result "0-1"]
[WhiteElo "982"]
[BlackElo "2305"]
[TimeControl "300"]
[EndTime "1:26:15 PDT"]
[Termination "NottheBishopSacrifice won by checkmate"]

1. e4 {[%clk 0:04:57.1]} 1... c6 {[%clk 0:04:59.9]} 2. Nf3 {[%clk 0:04:56.4]}
2... d5 {[%clk 0:04:59.8]} 3. exd5 {[%clk 0:04:55]} 3... cxd5 {[%clk 0:04:59.7]}
4. d4 {[%clk 0:04:52.9]} 4... Nc6 {[%clk 0:04:59.3]} 5. Nc3 {[%clk 0:04:50.9]}
5... Bg4 {[%clk 0:04:58.2]} 6. Be2 {[%clk 0:04:48.5]} 6... e6 {[%clk 0:04:56.9]}
7. h3 {[%clk 0:04:47.3]} 7... Bh5 {[%clk 0:04:55.5]} 8. Ne5 {[%clk 0:04:41.1]}
8... Bxe2 {[%clk 0:04:53.4]} 9. Qxe2 {[%clk 0:04:38.5]} 9... Nxe5 {[%clk
0:04:52.9]} 10. Qxe5 {[%clk 0:04:36.3]} 10... Nf6 {[%clk 0:04:52.5]} 11. Bg5
{[%clk 0:04:28]} 11... Be7 {[%clk 0:04:50.5]} 12. Nb5 {[%clk 0:04:11.4]} 12...
Qa5+ {[%clk 0:04:44.5]} 13. c3 {[%clk 0:03:57.9]} 13... Qxb5 {[%clk 0:04:42.9]}
14. O-O-O {[%clk 0:03:44.8]} 14... O-O {[%clk 0:04:37.3]} 15. Rhe1 {[%clk
0:03:34.9]} 15... Rac8 {[%clk 0:04:35.9]} 16. Re3 {[%clk 0:03:32.7]} 16... h6
{[%clk 0:04:33.5]} 17. Bxh6 {[%clk 0:03:27.4]} 17... gxh6 {[%clk 0:04:30.4]} 18.
Rg3+ {[%clk 0:03:26.1]} 18... Kh8 {[%clk 0:04:28.7]} 19. Qe3 {[%clk 0:03:20.3]}
19... Kh7 {[%clk 0:04:27.6]} 20. Rd3 {[%clk 0:02:22.1]} 20... Rg8 {[%clk
0:04:23.4]} 21. Rf3 {[%clk 0:02:16.2]} 21... Rg6 {[%clk 0:04:19.7]} 22. g4
{[%clk 0:02:12.6]} 22... Kg8 {[%clk 0:04:13.9]} 23. h4 {[%clk 0:02:03]} 23...
Nxg4 {[%clk 0:04:09.4]} 24. Qf4 {[%clk 0:01:52.7]} 24... f5 {[%clk 0:04:04]} 25.
h5 {[%clk 0:01:48.4]} 25... Bg5 {[%clk 0:04:02.1]} 26. Qxg5 {[%clk 0:01:40.4]}
26... Rxg5 {[%clk 0:04:00.9]} 27. Rg3 {[%clk 0:01:34.1]} 27... Rxh5 {[%clk
0:04:00]} 28. f3 {[%clk 0:01:32.8]} 28... Qxd3 {[%clk 0:03:57]} 29. fxg4 {[%clk
0:01:30.5]} 29... Rh1+ {[%clk 0:03:56.4]} 30. Rg1 {[%clk 0:01:27]} 30... Rxg1#
{[%clk 0:03:55.9]} 0-1

[Event "Live Chess"]
[Site "Chess.com"]
[Date "2024.06.02"]
[Round "-"]
[White "TheSmoulderingMaster"]
[Black "Tatarinov_Maxim"]
[Result "0-1"]
[WhiteElo "1738"]
[BlackElo "2271"]
[TimeControl "300"]
[EndTime "1:26:20 PDT"]
[Termination "Tatarinov_Maxim won by resignation"]

1. e4 {[%clk 0:04:56.3]} 1... c5 {[%clk 0:04:58.1]} 2. Nf3 {[%clk 0:04:54.8]}
2... Nc6 {[%clk 0:04:57.4]} 3. d4 {[%clk 0:04:51.9]} 3... cxd4 {[%clk
0:04:57.3]} 4. Nxd4 {[%clk 0:04:50.7]} 4... Nf6 {[%clk 0:04:56.6]} 5. Nc3 {[%clk
0:04:48.9]} 5... e5 {[%clk 0:04:55.8]} 6. Ndb5 {[%clk 0:04:47.3]} 6... d6 {[%clk
0:04:55.2]} 7. Bg5 {[%clk 0:04:44.7]} 7... a6 {[%clk 0:04:54.2]} 8. Na3 {[%clk
0:04:43]} 8... b5 {[%clk 0:04:53.5]} 9. Nd5 {[%clk 0:04:41.6]} 9... Be7 {[%clk
0:04:51.9]} 10. Bxf6 {[%clk 0:04:40.4]} 10... Bxf6 {[%clk 0:04:51.3]} 11. Bd3
{[%clk 0:04:39.1]} 11... Rb8 {[%clk 0:04:50.7]} 12. c3 {[%clk 0:04:37.6]} 12...
Bg5 {[%clk 0:04:50]} 13. O-O {[%clk 0:04:34.8]} 13... O-O {[%clk 0:04:49.1]} 14.
f4 {[%clk 0:04:31.9]} 14... exf4 {[%clk 0:04:45.7]} 15. Nxf4 {[%clk 0:04:30.8]}
15... b4 {[%clk 0:04:31.2]} 16. Nc4 {[%clk 0:04:25.9]} 16... bxc3 {[%clk
0:04:29.1]} 17. bxc3 {[%clk 0:04:23.6]} 17... Bxf4 {[%clk 0:04:20.5]} 18. Rxf4
{[%clk 0:04:20.2]} 18... Ne5 {[%clk 0:04:20.4]} 19. Ne3 {[%clk 0:04:09.2]} 19...
Qb6 {[%clk 0:04:13.6]} 20. Qe2 {[%clk 0:03:56.2]} 20... Bg4 {[%clk 0:03:51]} 21.
Qf2 {[%clk 0:03:48.1]} 21... Nxd3 {[%clk 0:03:48.9]} 0-1

[Event "Live Chess"]
[Site "Chess.com"]
[Date "2024.06.02"]
[Round "-"]
[White "Ferrarifan27"]
[Black "RockTroll"]
[Result "1-0"]
[WhiteElo "2144"]
[BlackElo "2176"]
[TimeControl "300"]
[EndTime "1:26:21 PDT"]
[Termination "Ferrarifan27 won by resignation"]

1. e4 {[%clk 0:04:58.2]} 1... c6 {[%clk 0:04:58.3]} 2. d4 {[%clk 0:04:56.4]}
2... d5 {[%clk 0:04:58.2]} 3. e5 {[%clk 0:04:55.3]} 3... Bf5 {[%clk 0:04:56.6]}
4. h4 {[%clk 0:04:54.4]} 4... h5 {[%clk 0:04:54.6]} 5. Bg5 {[%clk 0:04:52.3]}
5... Qb6 {[%clk 0:04:53.2]} 6. Bd3 {[%clk 0:04:49.2]} 6... Bxd3 {[%clk
0:04:48.7]} 7. Qxd3 {[%clk 0:04:49]} 7... e6 {[%clk 0:04:45.1]} 8. Nc3 {[%clk
0:04:44.6]} 8... Qa6 {[%clk 0:04:43]} 9. O-O-O {[%clk 0:04:37.7]} 9... Qxd3
{[%clk 0:04:41.5]} 10. Rxd3 {[%clk 0:04:36.3]} 10... c5 {[%clk 0:04:37.2]} 11.
dxc5 {[%clk 0:04:30.6]} 11... Bxc5 {[%clk 0:04:34.9]} 12. Be3 {[%clk 0:04:28.3]}
12... Nd7 {[%clk 0:04:29.9]} 13. Nf3 {[%clk 0:04:23.2]} 13... Ne7 {[%clk
0:04:25]} 14. Nb5 {[%clk 0:04:20.2]} 14... a6 {[%clk 0:04:10.3]} 15. Nc7+ {[%clk
0:04:17.1]} 1-0

[Event "Live Chess"]
[Site "Chess.com"]
[Date "2024.06.02"]
[Round "-"]
[White "DavrosLight"]
[Black "ProfPoisson"]
[Result "1-0"]
[WhiteElo "791"]
[BlackElo "1333"]
[TimeControl "300"]
[EndTime "1:26:38 PDT"]
[Termination "DavrosLight won by checkmate"]

1. e4 {[%clk 0:04:57.8]} 1... e5 {[%clk 0:04:58.1]} 2. Nc3 {[%clk 0:04:53.3]}
2... Nf6 {[%clk 0:04:57]} 3. f4 {[%clk 0:04:51.9]} 3... d5 {[%clk 0:04:55.3]} 4.
fxe5 {[%clk 0:04:49.8]} 4... Nxe4 {[%clk 0:04:53.9]} 5. Qf3 {[%clk 0:04:46.3]}
5... Bc5 {[%clk 0:04:28.9]} 6. Nxe4 {[%clk 0:04:28.6]} 6... dxe4 {[%clk
0:04:26.4]} 7. Qxe4 {[%clk 0:04:27.8]} 7... O-O {[%clk 0:04:23.3]} 8. Bd3 {[%clk
0:04:19.2]} 8... f5 {[%clk 0:04:18.8]} 9. Qc4+ {[%clk 0:04:07.8]} 9... Kh8
{[%clk 0:03:57.4]} 10. Qxc5 {[%clk 0:04:05]} 10... Nc6 {[%clk 0:03:52.8]} 11. b3
{[%clk 0:03:36.8]} 11... f4 {[%clk 0:03:41.1]} 12. Bb2 {[%clk 0:03:29.7]} 12...
Qh4+ {[%clk 0:03:30.5]} 13. Qf2 {[%clk 0:03:16.1]} 13... Qe7 {[%clk 0:03:26.8]}
14. Nf3 {[%clk 0:02:56.9]} 14... Bg4 {[%clk 0:03:02.7]} 15. Qh4 {[%clk
0:02:28.6]} 15... Bf5 {[%clk 0:02:51.8]} 16. Bxf5 {[%clk 0:02:13.9]} 16... Rxf5
{[%clk 0:02:34.2]} 17. Qxe7 {[%clk 0:02:00.8]} 17... Nxe7 {[%clk 0:02:31.9]} 18.
O-O-O {[%clk 0:01:54.7]} 18... Rd8 {[%clk 0:02:25]} 19. Nh4 {[%clk 0:01:50.2]}
19... Rg5 {[%clk 0:02:20]} 20. Rhf1 {[%clk 0:01:23.5]} 20... Nd5 {[%clk
0:02:17.2]} 21. c4 {[%clk 0:01:17.1]} 21... Nb4 {[%clk 0:02:12.3]} 22. d4 {[%clk
0:01:10.2]} 22... Nxa2+ {[%clk 0:02:05.9]} 23. Kb1 {[%clk 0:01:06]} 23... Nb4
{[%clk 0:02:02.9]} 24. Rxf4 {[%clk 0:01:04.7]} 24... h6 {[%clk 0:01:49.3]} 25.
Rdf1 {[%clk 0:00:55.7]} 25... a5 {[%clk 0:01:47.2]} 26. Rf8+ {[%clk 0:00:53.4]}
26... Rxf8 {[%clk 0:01:46]} 27. Rxf8+ {[%clk 0:00:52.3]} 27... Kh7 {[%clk
0:01:45.3]} 28. e6 {[%clk 0:00:41.6]} 28... Rh5 {[%clk 0:01:42.2]} 29. e7 {[%clk
0:00:33.6]} 29... Rxh4 {[%clk 0:01:41.4]} 30. e8=Q {[%clk 0:00:29.7]} 30... Rxh2
{[%clk 0:01:40.9]} 31. Rh8# {[%clk 0:00:23.4]} 1-0

[Event "Live Chess"]
[Site "Chess.com"]
[Date "2024.06.02"]
[Round "-"]
[White "WeakOldFinished"]
[Black "ameetghasi100"]
[Result "0-1"]
[WhiteElo "2149"]
[BlackElo "2792"]
[TimeControl "300"]
[EndTime "1:27:04 PDT"]
[Termination "ameetghasi100 won by resignation"]

1. d4 {[%clk 0:04:56.6]} 1... c5 {[%clk 0:04:59.9]} 2. d5 {[%clk 0:04:55.4]}
2... Nf6 {[%clk 0:04:59.6]} 3. c4 {[%clk 0:04:54]} 3... d6 {[%clk 0:04:59.5]} 4.
Nc3 {[%clk 0:04:53.2]} 4... g6 {[%clk 0:04:59.4]} 5. e4 {[%clk 0:04:52.2]} 5...
Bg7 {[%clk 0:04:59]} 6. f4 {[%clk 0:04:47.8]} 6... O-O {[%clk 0:04:58.2]} 7. Nf3
{[%clk 0:04:47.2]} 7... Bg4 {[%clk 0:04:56.8]} 8. h3 {[%clk 0:04:46.2]} 8...
Bxf3 {[%clk 0:04:55.6]} 9. Qxf3 {[%clk 0:04:46.1]} 9... Nbd7 {[%clk 0:04:53.6]}
10. Bd3 {[%clk 0:04:42.8]} 10... a6 {[%clk 0:04:52.9]} 11. a4 {[%clk 0:04:41.5]}
11... e6 {[%clk 0:04:50.2]} 12. dxe6 {[%clk 0:04:35.2]} 12... fxe6 {[%clk
0:04:50.1]} 13. O-O {[%clk 0:04:34.6]} 13... Qc7 {[%clk 0:04:46.7]} 14. Bd2
{[%clk 0:04:19.8]} 14... Rae8 {[%clk 0:04:45.7]} 15. Rae1 {[%clk 0:04:17.9]}
15... Nh5 {[%clk 0:04:44.5]} 16. Qg4 {[%clk 0:04:02]} 16... Bd4+ {[%clk
0:04:39.8]} 17. Be3 {[%clk 0:03:59.4]} 17... Ndf6 {[%clk 0:04:39.7]} 18. Qh4
{[%clk 0:03:57.9]} 18... Qb6 {[%clk 0:04:28.2]} 19. Bxd4 {[%clk 0:03:53.8]}
19... cxd4 {[%clk 0:04:27]} 20. Ne2 {[%clk 0:03:53]} 20... Qxb2 {[%clk
0:03:59.7]} 21. f5 {[%clk 0:03:51]} 21... Qd2 {[%clk 0:03:42.7]} 22. Rf3 {[%clk
0:03:23.2]} 22... g5 {[%clk 0:03:36.4]} 23. Qf2 {[%clk 0:03:22.1]} 23... e5
{[%clk 0:03:34.9]} 24. Nc1 {[%clk 0:03:00.8]} 24... Qxf2+ {[%clk 0:03:30.1]} 25.
Kxf2 {[%clk 0:03:00.7]} 25... Nf4 {[%clk 0:03:29.2]} 26. Bf1 {[%clk 0:02:53.2]}
26... Re7 {[%clk 0:03:24.2]} 27. Rb3 {[%clk 0:02:52.2]} 27... Rc8 {[%clk
0:03:11]} 28. g3 {[%clk 0:02:50.9]} 28... N4h5 {[%clk 0:03:09]} 29. Bd3 {[%clk
0:02:33.7]} 29... Rcc7 {[%clk 0:03:07.9]} 30. Ne2 {[%clk 0:02:27]} 30... Nd7
{[%clk 0:03:06.1]} 31. Rd1 {[%clk 0:02:14]} 31... Nc5 {[%clk 0:03:06]} 32. Rb6
{[%clk 0:02:13.3]} 32... Rc6 {[%clk 0:03:03.5]} 33. a5 {[%clk 0:02:09.6]} 33...
Rxb6 {[%clk 0:03:00.2]} 34. axb6 {[%clk 0:02:09.5]} 34... Nf6 {[%clk 0:02:59.6]}
35. Kf3 {[%clk 0:02:06.3]} 35... h5 {[%clk 0:02:59.2]} 36. g4 {[%clk 0:02:05.7]}
36... hxg4+ {[%clk 0:02:58.7]} 37. hxg4 {[%clk 0:02:05.6]} 37... Rh7 {[%clk
0:02:58.2]} 38. Ng3 {[%clk 0:01:59.2]} 38... Rh3 {[%clk 0:02:57.2]} 39. Bf1
{[%clk 0:01:52.6]} 39... Rh4 {[%clk 0:02:54.4]} 0-1